bitfinex/quotes_SOLUSD_20250805
["timestamp","ask_amount","ask_price","bid_price","bid_amount"]
[1754356166260,0.66,169.99,169.95,42.38]
[1754356166681,9.0485655,169.96,169.95,0.06]
[1754356166955,9.7085655,169.96,169.95,0.06]
[1754356167363,15.59230284,169.96,169.95,0.06]
[1754356172659,6.54373734,169.96,169.95,0.06]
[1754356172859,15.59230284,169.96,169.95,0.06]
[1754356176941,14.93201967,169.97,169.95,0.06]
[1754356177471,15.61201967,169.97,169.95,0.06]
[1754356177855,9.7285655,169.96,169.95,0.06]
[1754356178038,9.7285655,169.96,169.93,0.06]
[1754356178238,9.0485655,169.94,169.93,0.06]
[1754356178439,51.2085655,169.94,169.93,0.06]
[1754356178660,51.8885655,169.94,169.93,0.06]
[1754356179671,57.77299529,169.94,169.93,0.06]
[1754356180164,57.77299529,169.94,169.83,0.2]
[1754356180165,15.24837714,169.93,169.83,0.2]
[1754356180365,9.0485655,169.87,169.83,0.2]
[1754356180572,9.0485655,169.88,169.83,9.2485655]
[1754356180744,0.68,169.88,169.83,15.13679348]
[1754356180936,9.7285655,169.88,169.83,15.25679348]
[1754356182147,51.1685655,169.89,169.84,9.1685655]
[1754356182354,51.8485655,169.89,169.84,9.1685655]
[1754356182553,0.68,169.88,169.84,9.0485655]
[1754356182980,9.0485655,169.88,169.83,6.08822798]
[1754356183272,0.68,169.87,169.83,15.13679348]
[1754356183480,0.68,169.86,169.83,9.2485655]
[1754356183770,9.0485655,169.88,169.83,9.2485655]
[1754356183968,0.68,169.85,169.83,0.2]
[1754356184676,14.93581061,169.86,169.83,0.2]
[1754356184677,0.68,169.84,169.83,0.2]
[1754356186145,15.61645998,169.84,169.83,0.2]
[1754356188144,42.06,169.85,169.83,0.2]
[1754356188368,42.04,169.85,169.83,0.2]
[1754356188560,9.7285655,169.84,169.83,0.2]
[1754356190378,0.68,169.84,169.83,0.2]
[1754356190565,42.04,169.85,169.83,0.2]
[1754356190888,0.68,169.84,169.83,0.2]
[1754356191059,9.7285655,169.84,169.83,0.2]
[1754356192168,15.61645998,169.84,169.83,0.2]
[1754356192673,6.56789448,169.84,169.83,0.2]
[1754356192879,15.61645998,169.84,169.83,0.2]
[1754356197192,6.56789448,169.84,169.83,0.2]
[1754356197789,15.61645998,169.84,169.83,0.2]
[1754356198485,56.97624555,169.85,169.83,0.2]
[1754356198654,6.57789448,169.84,169.83,0.2]
[1754356198858,15.62645998,169.84,169.83,0.2]
[1754356199167,6.57789448,169.84,169.83,0.2]
[1754356200059,15.62645998,169.84,169.83,0.2]
[1754356202961,6.57789448,169.84,169.83,0.2]
[1754356203164,15.62645998,169.84,169.83,0.2]
[1754356204812,6.57789448,169.84,169.83,0.2]
[1754356206093,5.88789448,169.84,169.83,0.2]
[1754356206666,47.78789448,169.84,169.83,0.2]
[1754356206871,48.47789448,169.84,169.83,0.2]
[1754356208889,57.52645998,169.84,169.83,0.2]
[1754356215810,48.47789448,169.84,169.83,0.2]
[1754356215987,57.52645998,169.84,169.83,0.2]
[1754356224197,57.34645998,169.84,169.83,0.2]
[1754356224391,107.1147617,169.84,169.81,0.06]
[1754356224584,0.69,169.83,169.81,0.06]
[1754356224779,50.7685655,169.82,169.81,0.06]
[1754356224998,9.7385655,169.83,169.81,0.06]
[1754356225179,41.7,169.82,169.81,0.06]
[1754356225594,47.58858791,169.82,169.81,0.06]
[1754356225900,47.60858791,169.82,169.81,0.06]
[1754356226285,41.72,169.82,169.81,9.2285655]
[1754356226677,5.88754783,169.85,169.81,9.2285655]
[1754356226879,41.7,169.84,169.81,9.2285655]
[1754356227074,41.7,169.83,169.81,9.2285655]
[1754356227707,47.58827776,169.83,169.81,9.2285655]
[1754356228014,47.58827776,169.83,169.81,0.06]
[1754356229115,41.7,169.83,169.81,0.06]
[1754356229310,41.7,169.83,169.81,9.1085655]
[1754356229899,41.7,169.83,169.81,9.2285655]
[1754356230291,41.7,169.83,169.82,9.0485655]
[1754356230505,14.85731607,169.9,169.81,9.1085655]
[1754356230506,41.68,169.84,169.81,9.1085655]
[1754356230688,9.0485655,169.82,169.81,0.06]
[1754356231011,9.0485655,169.82,169.8,0.2]
[1754356231012,50.7085655,169.82,169.8,0.2]
[1754356231304,24.96694264,169.81,169.8,1e-08]
[1754356231477,24.96694264,169.81,169.77,0.06]
[1754356231478,0.14216157,169.79,169.77,0.06]
[1754356231688,57.26854076,169.78,169.77,0.06]
[1754356235887,47.54997526,169.78,169.77,0.06]
[1754356237831,57.26854076,169.78,169.77,0.06]
[1754356240018,48.21997526,169.78,169.77,0.06]
[1754356240190,57.26854076,169.78,169.77,0.06]
[1754356241707,57.41070233,169.78,169.77,0.06]
[1754356242705,72.5169179,169.78,169.77,0.06]
[1754356244810,98.5169179,169.78,169.77,1e-08]
[1754356247707,100.8770089,169.78,169.77,1e-08]
[1754356248432,85.77079333,169.78,169.77,1e-08]
[1754356249737,83.26854076,169.78,169.77,1e-08]
[1754356249904,85.62821376,169.78,169.77,1e-08]
[1754356251640,83.26854076,169.78,169.77,1e-08]
[1754356254340,85.62821376,169.78,169.77,1e-08]
[1754356254539,26.0,169.78,169.77,0.12000001]
[1754356254746,41.56,169.78,169.77,0.12000001]
[1754356255050,41.56,169.78,169.77,1e-08]
[1754356255617,51.2785655,169.78,169.77,1e-08]
[1754356256005,57.16854076,169.78,169.77,1e-08]
[1754356256442,56.49854076,169.78,169.77,1e-08]
[1754356258046,47.44997526,169.78,169.77,1e-08]
[1754356258928,41.56,169.78,169.77,1e-08]
[1754356259135,41.56,169.78,169.77,0.12000001]
[1754356259316,0.03,169.8,169.77,9.16856551]
[1754356259520,41.72,169.79,169.78,9.1685655]
[1754356260538,41.72,169.79,169.77,1e-08]
[1754356260915,0.03,169.8,169.78,0.12]
[1754356261109,41.72,169.79,169.78,9.0485655]
[1754356261714,41.72,169.79,169.78,9.1685655]
[1754356262718,41.72,169.79,169.78,9.0485655]
[1754356263020,41.72,169.79,169.77,9.04856551]
[1754356263224,47.60962836,169.79,169.77,1e-08]
[1754356263430,48.28962836,169.79,169.77,1e-08]
[1754356263626,47.60962836,169.79,169.77,1e-08]
[1754356265625,47.63962836,169.79,169.77,1e-08]
[1754356267660,48.31962836,169.79,169.77,1e-08]
[1754356268638,9.7285655,169.78,169.77,1e-08]
[1754356269027,9.0485655,169.77,169.75,0.06]
[1754356269335,50.7085655,169.76,169.75,0.06]
[1754356269534,51.3885655,169.76,169.75,0.06]
[1754356269732,57.27923468,169.76,169.75,0.06]
[1754356269947,57.42139625,169.76,169.75,0.06]
[1754356270153,66.46996175,169.76,169.75,1e-08]
[1754356271225,81.57617732,169.76,169.75,1e-08]
[1754356272761,26.14216157,169.73,169.72,1e-08]
[1754356273051,76.83072707,169.73,169.72,1e-08]
[1754356273554,0.14216157,169.72,169.7,1e-08]
[1754356273753,65.93694264,169.71,169.7,1e-08]
[1754356274253,66.61694264,169.71,169.7,1e-08]
[1754356274556,51.51072707,169.71,169.7,1e-08]
[1754356274848,57.40313176,169.71,169.7,1e-08]
[1754356276051,59.76405876,169.71,169.7,1e-08]
[1754356288047,59.79405876,169.71,169.7,1e-08]
[1754356288490,59.11405876,169.71,169.7,1e-08]
[1754356288673,56.61097019,169.71,169.7,1e-08]
[1754356288858,56.49097019,169.71,169.7,1e-08]
[1754356293460,47.44240469,169.71,169.7,1e-08]
[1754356293661,0.03,169.71,169.7,0.32000001]
[1754356293965,41.55,169.71,169.7,0.32000001]
[1754356295683,47.44240469,169.71,169.7,0.32000001]
[1754356296387,47.44240469,169.71,169.7,1e-08]
[1754356297088,48.14240469,169.71,169.7,1e-08]
[1754356297395,47.44240469,169.71,169.7,1e-08]
[1754356298011,41.55,169.71,169.7,1e-08]
[1754356298181,47.44240469,169.71,169.7,1e-08]
[1754356298388,41.55,169.71,169.7,1e-08]
[1754356298805,47.44240469,169.71,169.7,1e-08]
[1754356299724,48.14240469,169.71,169.7,1e-08]
[1754356301829,57.33313176,169.71,169.7,1e-08]
[1754356304947,72.43934733,169.71,169.7,1e-08]
[1754356311157,76.3980597,169.71,169.7,1e-08]
[1754356311723,26.0,169.68,169.66,0.2]
[1754356311956,50.5485655,169.67,169.66,0.2]
[1754356312123,51.2485655,169.67,169.66,0.2]
[1754356312854,57.14235933,169.67,169.66,0.2]
[1754356313062,56.44235933,169.67,169.66,0.2]
[1754356315959,71.87684391,169.67,169.62,0.06]
[1754356316137,9.0485655,169.63,169.62,0.06]
[1754356316333,41.5,169.63,169.62,0.06]
[1754356316530,47.39518363,169.63,169.62,0.06]
[1754356317448,57.14374913,169.63,169.62,0.06]
[1754356318163,0.14216157,169.62,169.58,0.2]
[1754356318355,50.5485655,169.61,169.58,0.2]
[1754356318658,57.14444428,169.61,169.58,0.2]
[1754356318870,71.88414123,169.61,169.58,0.2]
[1754356319033,9.0485655,169.59,169.58,0.2]
[1754356319363,50.71072707,169.59,169.58,0.2]
[1754356319538,51.43072707,169.59,169.58,0.2]
[1754356320556,56.46513959,169.59,169.58,0.2]
[1754356321264,57.32730116,169.59,169.58,0.2]
[1754356321448,9.0485655,169.56,169.55,0.2]
[1754356321632,50.5685655,169.56,169.55,0.2]
[1754356322030,51.2885655,169.56,169.55,0.2]
[1754356322483,26.0,169.54,169.53,1e-08]
[1754356322679,97.71525572,169.54,169.53,1e-08]
[1754356322977,98.43525572,169.54,169.53,1e-08]
[1754356323333,26.0,169.5,169.48,0.06]
[1754356323543,9.19072707,169.49,169.48,0.06]
[1754356323775,15.24837714,169.48,169.45,0.2]
[1754356323939,35.19072707,169.46,169.45,1e-08]
[1754356324240,50.29694264,169.46,169.45,1e-08]
[1754356324439,51.01694264,169.46,169.45,1e-08]
[1754356324633,56.91804024,169.46,169.45,1e-08]
[1754356324840,65.96660574,169.46,169.45,1e-08]
[1754356325259,75.96660574,169.46,169.45,1e-08]
[1754356325461,66.91804024,169.46,169.45,1e-08]
[1754356328255,56.91804024,169.46,169.45,1e-08]
[1754356328651,66.91804024,169.46,169.45,1e-08]
[1754356329169,56.91804024,169.46,169.45,1e-08]
[1754356329565,66.91804024,169.46,169.45,1e-08]
[1754356329867,65.96660574,169.46,169.45,1e-08]
[1754356330041,66.91804024,169.46,169.45,1e-08]
[1754356331752,56.19804024,169.46,169.45,1e-08]
[1754356331974,66.91804024,169.46,169.45,1e-08]
[1754356332166,56.91804024,169.46,169.45,1e-08]
[1754356332771,66.91804024,169.46,169.45,1e-08]
[1754356332963,56.91804024,169.46,169.45,1e-08]
[1754356333477,40.9496631,169.46,169.45,1e-08]
[1754356334744,41.6696631,169.46,169.45,1e-08]
[1754356335146,15.10621557,169.45,169.43,1e-08]
[1754356335366,90.86730228,169.44,169.43,1e-08]
[1754356335568,0.14216157,169.42,169.39,0.06]
[1754356335877,9.0485655,169.4,169.39,0.06]
[1754356336196,50.6885655,169.4,169.39,0.06]
[1754356337273,56.59175322,169.4,169.39,0.06]
[1754356340966,47.54318772,169.4,169.39,0.06]
[1754356341170,47.54318772,169.4,169.39,0.38]
[1754356341349,47.54318772,169.4,169.39,0.06]
[1754356341850,47.54318772,169.4,169.29,15.24837714]
[1754356341851,72.06972252,169.4,169.29,15.24837714]
[1754356342061,9.0485655,169.35,169.3,0.32]
[1754356342353,41.64,169.34,169.3,8.3685655]
[1754356342980,41.64,169.34,169.31,9.0485655]
[1754356343281,41.64,169.34,169.33,9.0485655]
[1754356345881,9.0485655,169.39,169.33,14.95419356]
[1754356346068,41.64,169.38,169.35,9.0485655]
[1754356346469,41.64,169.38,169.37,9.0485655]
[1754356346667,6.62189306,169.44,169.37,9.0485655]
[1754356346983,41.64,169.43,169.4,9.0485655]
[1754356347853,5.90249085,169.42,169.4,9.0485655]
[1754356348054,41.64,169.41,169.4,9.0485655]
[1754356348858,6.61074939,169.47,169.4,9.0485655]
[1754356349060,41.64,169.46,169.44,9.0485655]
[1754356349286,41.64,169.46,169.43,9.0485655]
[1754356349562,42.35,169.46,169.43,9.0485655]
[1754356349765,41.64,169.46,169.45,9.0485655]
[1754356350291,41.66,169.46,169.45,9.0485655]
[1754356350791,41.66,169.46,169.41,5.90271503]
[1754356350970,41.66,169.46,169.44,9.0485655]
[1754356351167,42.37,169.46,169.44,9.0485655]
[1754356352091,48.27122585,169.46,169.44,9.0485655]
[1754356352288,48.27122585,169.46,169.4,5.9029614]
[1754356352289,41.66,169.46,169.45,9.0485655]
[1754356353892,41.66,169.46,169.45,14.95001135]
[1754356354077,5.89945966,169.51,169.45,14.95001135]
[1754356354278,41.64,169.5,169.49,9.0485655]
[1754356355996,42.35,169.5,169.44,9.0485655]
[1754356356179,42.35,169.5,169.48,9.0485655]
[1754356356378,0.71,169.49,169.46,9.0485655]
[1754356356580,42.37,169.48,169.46,9.0485655]
[1754356357089,41.66,169.48,169.46,9.0485655]
[1754356357289,0.71,169.47,169.45,9.0485655]
[1754356357798,48.27130022,169.46,169.43,9.0485655]
[1754356358000,0.71,169.45,169.43,9.0485655]
[1754356358208,41.64,169.44,169.43,9.0485655]
[1754356359707,41.64,169.46,169.43,9.0485655]
[1754356359873,41.64,169.46,169.44,9.0485655]
[1754356360882,48.2511377,169.46,169.44,9.0485655]
[1754356361274,0.71,169.45,169.43,9.0485655]
[1754356361868,47.5411377,169.46,169.43,9.0485655]
[1754356362491,41.64,169.46,169.44,9.0485655]
[1754356362679,48.25115959,169.46,169.43,9.0485655]
[1754356362864,0.71,169.45,169.43,9.0485655]
[1754356364106,9.0485655,169.52,169.4,5.90306947]
[1754356364107,5.9000531,169.49,169.44,18.097131]
[1754356364392,5.9000531,169.49,169.4,5.90306947]
[1754356364393,5.9000531,169.49,169.46,9.0485655]
[1754356364608,42.33,169.48,169.46,9.0485655]
[1754356364765,0.71,169.47,169.45,9.0485655]
[1754356365097,41.62,169.48,169.46,9.0485655]
[1754356365793,42.33,169.48,169.43,26.0]
[1754356365997,0.71,169.47,169.45,9.0485655]
[1754356366184,0.71,169.47,169.46,9.0485655]
[1754356367997,6.61074939,169.47,169.46,9.0485655]
[1754356368311,6.61074939,169.47,169.42,26.0]
[1754356368474,41.6,169.46,169.42,9.0485655]
[1754356368791,0.71,169.45,169.42,9.0485655]
[1754356368994,0.71,169.45,169.4,26.0]
[1754356369298,41.6,169.44,169.41,9.0485655]
[1754356369505,42.31,169.44,169.42,9.0485655]
[1754356370399,48.21190761,169.44,169.42,9.0485655]
[1754356370776,48.21190761,169.44,169.37,21.01033084]
[1754356370981,0.71,169.43,169.41,9.0485655]
[1754356371298,0.71,169.42,169.41,9.0485655]
[1754356371474,0.71,169.43,169.41,9.0485655]
[1754356373175,0.71,169.43,169.39,26.0]
[1754356373376,0.71,169.43,169.4,9.0485655]
[1754356374787,9.0485655,169.41,169.36,9.0485655]
[1754356374990,0.71,169.4,169.36,9.0485655]
[1754356375182,9.7585655,169.4,169.35,26.0]
[1754356375388,0.71,169.39,169.35,26.0]
[1754356375583,9.0485655,169.4,169.35,35.0485655]
[1754356375901,41.6,169.39,169.37,9.0485655]
[1754356376090,47.50349751,169.4,169.36,9.0485655]
[1754356376274,48.21349751,169.4,169.36,9.0485655]
[1754356376477,48.21349751,169.4,169.37,9.0485655]
[1754356377708,9.0485655,169.38,169.32,9.0485655]
[1754356377907,42.33,169.37,169.32,9.0485655]
[1754356378114,6.6146207,169.36,169.33,9.0485655]
[1754356378305,0.71,169.35,169.33,9.0485655]
[1754356378923,47.52435176,169.37,169.34,9.0485655]
[1754356379293,48.24435176,169.37,169.34,9.0485655]
[1754356380125,0.72,169.36,169.33,9.0485655]
[1754356381917,41.62,169.37,169.34,9.0485655]
[1754356382907,42.34,169.37,169.34,9.0485655]
[1754356383323,5.90249085,169.42,169.36,9.0485655]
[1754356383511,48.24249085,169.42,169.39,9.0485655]
[1754356383716,48.24249085,169.42,169.33,41.10621557]
[1754356383717,41.62,169.42,169.4,9.0485655]
[1754356383926,41.64,169.44,169.41,9.0485655]
[1754356384111,41.64,169.44,169.42,9.0485655]
[1754356384621,0.72,169.43,169.42,9.0485655]
[1754356384819,42.36,169.44,169.42,9.0485655]
[1754356385206,42.36,169.44,169.38,15.10621557]
[1754356385428,48.26179414,169.44,169.43,9.0485655]
[1754356385932,42.36,169.44,169.43,9.0485655]
[1754356386224,0.72,169.44,169.43,9.0485655]
[1754356387017,0.72,169.44,169.39,5.90324809]
[1754356387202,0.72,169.44,169.43,9.0485655]
[1754356387730,6.62179414,169.44,169.43,9.0485655]
[1754356388096,6.62179414,169.44,169.42,9.0485655]
[1754356388302,0.72,169.43,169.37,21.01031748]
[1754356388503,42.34,169.43,169.39,35.0485655]
[1754356388714,0.72,169.42,169.39,35.0485655]
[1754356389036,9.0485655,169.41,169.36,9.0485655]
[1754356389205,51.3885655,169.4,169.32,41.62]
[1754356389410,0.72,169.39,169.35,9.0485655]
[1754356390612,47.5233004,169.4,169.37,9.0485655]
[1754356390812,47.5233004,169.4,169.38,9.0485655]
[1754356391227,48.2433004,169.4,169.38,9.0485655]
[1754356391531,48.2433004,169.4,169.37,9.0485655]
[1754356391834,42.34,169.4,169.38,9.0485655]
[1754356392820,0.72,169.39,169.33,31.90550292]
[1754356393013,0.72,169.39,169.35,9.0485655]
[1754356393252,0.72,169.39,169.33,31.90550292]
[1754356393456,0.72,169.39,169.35,9.0485655]
[1754356394025,0.72,169.39,169.36,9.0485655]
[1754356394337,0.72,169.38,169.36,9.0485655]
[1754356394532,0.72,169.38,169.35,9.0485655]
[1754356394730,0.72,169.37,169.35,9.0485655]
[1754356394944,0.72,169.36,169.35,9.0485655]
[1754356395144,0.72,169.36,169.33,26.0]
[1754356395347,41.62,169.37,169.33,35.0485655]
[1754356395548,0.72,169.35,169.33,35.0485655]
[1754356395741,0.72,169.35,169.33,26.0]
[1754356395940,0.72,169.35,169.33,35.0485655]
[1754356397158,48.24435924,169.37,169.33,35.0485655]
[1754356397352,48.24435924,169.37,169.34,9.0485655]
[1754356397857,0.72,169.36,169.33,26.0]
[1754356398054,0.72,169.36,169.34,9.0485655]
[1754356398442,6.62461411,169.36,169.34,9.0485655]
[1754356398756,0.72,169.35,169.33,35.0485655]
[1754356400236,0.72,169.35,169.33,26.0]
[1754356400557,5.90461411,169.36,169.33,35.0485655]
[1754356400558,0.72,169.34,169.33,35.0485655]
[1754356401664,0.72,169.34,169.33,26.0]
[1754356403649,6.62527931,169.34,169.32,9.0485655]
[1754356403964,5.90467259,169.36,169.3,21.07287417]
[1754356404164,5.90467259,169.36,169.33,9.0485655]
[1754356405243,6.62467259,169.36,169.33,9.0485655]
[1754356405445,0.72,169.35,169.33,9.0485655]
[1754356406565,6.62495632,169.35,169.33,9.0485655]
[1754356406768,6.62495632,169.35,169.34,9.0485655]
[1754356407968,6.62495632,169.35,169.33,9.0485655]
[1754356413250,6.62495632,169.35,169.3,15.16621557]
[1754356413459,6.62495632,169.35,169.33,9.0485655]
[1754356415653,6.62495632,169.35,169.3,15.16621557]
[1754356415855,0.7,169.34,169.31,9.0485655]
[1754356416078,51.3485655,169.34,169.3,0.06]
[1754356416282,9.7485655,169.33,169.3,0.06]
[1754356416764,0.7,169.32,169.3,0.06]
[1754356417458,0.7,169.31,169.3,0.06]
[1754356417665,41.6,169.34,169.3,9.1085655]
[1754356417967,42.3,169.34,169.3,0.06]
[1754356418188,0.7,169.33,169.3,9.1085655]
[1754356418360,0.7,169.32,169.3,9.1085655]
[1754356418560,0.7,169.31,169.3,0.06]
[1754356419767,6.60632567,169.31,169.3,0.06]
[1754356421589,48.20632567,169.31,169.3,0.06]
[1754356422199,57.25489117,169.31,169.3,0.06]
[1754356425360,48.20632567,169.31,169.3,0.06]
[1754356425792,57.25489117,169.31,169.3,0.06]
[1754356425995,48.20632567,169.31,169.3,0.06]
[1754356426174,41.6,169.31,169.3,0.06]
[1754356426574,48.20632567,169.31,169.3,0.06]
[1754356426913,57.25489117,169.31,169.3,0.06]
[1754356427777,48.20632567,169.31,169.3,0.06]
[1754356427975,47.50632567,169.31,169.3,0.06]
[1754356428181,41.6,169.31,169.3,0.06]
[1754356428674,47.50632567,169.31,169.3,0.06]
[1754356429300,41.6,169.31,169.3,0.06]
[1754356429601,47.50632567,169.31,169.3,0.06]
[1754356429771,41.6,169.31,169.3,0.06]
[1754356429972,5.90493061,169.35,169.3,9.1085655]
[1754356430173,0.7,169.36,169.33,9.0485655]
[1754356430174,5.90465565,169.36,169.33,9.0485655]
[1754356430408,41.6,169.35,169.33,9.0485655]
[1754356431187,41.6,169.35,169.34,9.0485655]
[1754356431496,0.03,169.37,169.34,9.0485655]
[1754356431497,41.63,169.37,169.34,9.0485655]
[1754356431671,41.63,169.37,169.36,9.0485655]
[1754356431672,0.03,169.37,169.36,9.0485655]
[1754356431876,0.03,169.37,169.36,24.00171295]
[1754356432072,0.03,169.37,169.36,39.25009009]
[1754356434420,0.03,169.39,169.38,41.10621557]
[1754356434696,0.03,169.39,169.38,50.15478107]
[1754356435716,0.03,169.39,169.38,56.05866582]
[1754356436500,0.03,169.39,169.38,50.15478107]
[1754356436891,0.73,169.39,169.32,14.76452718]
[1754356437090,0.73,169.39,169.34,15.24837714]
[1754356437295,0.73,169.39,169.38,9.0485655]
[1754356437917,0.73,169.39,169.37,9.0485655]
[1754356438089,0.03,169.39,169.37,9.0485655]
[1754356438292,0.7,169.38,169.37,9.0485655]
[1754356440496,0.7,169.38,169.3,5.963296]
[1754356440497,6.60388475,169.38,169.3,5.963296]
[1754356440723,0.69,169.37,169.33,9.0485655]
[1754356441492,0.69,169.36,169.34,9.0485655]
[1754356441690,6.59388475,169.38,169.34,9.0485655]
[1754356441897,0.69,169.38,169.35,9.0485655]
[1754356442205,0.72,169.38,169.35,9.0485655]
[1754356442597,0.72,169.38,169.33,5.90531742]
[1754356442598,9.0485655,169.37,169.32,9.0485655]
[1754356442808,0.69,169.36,169.32,9.0485655]
[1754356443404,0.69,169.35,169.32,9.0485655]
[1754356443600,0.69,169.34,169.31,9.0485655]
[1754356443928,0.69,169.33,169.3,9.1085655]
[1754356444126,5.90597684,169.32,169.3,0.06]
[1754356444299,0.69,169.31,169.3,0.06]
[1754356446228,6.59632567,169.31,169.3,0.06]
[1754356446730,15.64489117,169.31,169.3,0.06]
[1754356454314,26.0,169.29,169.28,0.06]
[1754356454542,76.6485655,169.29,169.28,0.06]
[1754356454722,77.48072707,169.29,169.28,1e-08]
[1754356456333,83.38775052,169.29,169.28,1e-08]
[1754356458026,74.33918502,169.29,169.28,1e-08]
[1754356458347,83.38775052,169.29,169.28,1e-08]
[1754356461217,98.49396609,169.29,169.28,1e-08]
[1754356461423,107.54253159,169.29,169.28,1e-08]
[1754356462439,98.49396609,169.29,169.28,1e-08]
[1754356464551,47.50702345,169.29,169.28,1e-08]
[1754356465637,41.6,169.29,169.28,1e-08]
[1754356465834,41.6,169.29,169.28,9.04856551]
[1754356466040,5.9366226,169.31,169.28,9.04856551]
[1754356466041,41.62,169.3,169.28,9.04856551]
[1754356466241,41.62,169.3,169.28,1e-08]
[1754356466423,41.62,169.3,169.28,9.04856551]
[1754356466625,41.62,169.3,169.28,1e-08]
[1754356466824,0.03,169.29,169.28,1e-08]
[1754356467151,9.7685655,169.29,169.28,1e-08]
[1754356468254,6.62702345,169.29,169.28,1e-08]
[1754356469254,5.93702345,169.29,169.28,1e-08]
[1754356470559,0.03,169.29,169.28,1e-08]
[1754356470734,41.65,169.29,169.28,1e-08]
[1754356471165,41.65,169.29,169.28,9.04856551]
[1754356471366,41.65,169.29,169.28,1e-08]
[1754356471550,41.65,169.29,169.28,9.04856551]
[1754356472935,0.03,169.29,169.28,9.04856551]
[1754356473450,0.03,169.29,169.28,14.95593791]
[1754356473647,0.03,169.29,169.28,39.11071898]
[1754356474935,0.03,169.29,169.28,21.01358798]
[1754356475172,0.03,169.29,169.28,39.11071898]
[1754356478472,0.03,169.29,169.28,65.25288055]
[1754356486147,0.03,169.31,169.3,26.0]
[1754356486472,0.65,169.37,169.34,15.10621557]
[1754356486676,0.65,169.37,169.36,9.0485655]
[1754356487366,0.65,169.37,169.36,14.95314745]
[1754356488974,0.03,169.38,169.36,24.00171295]
[1754356489163,0.03,169.38,169.37,24.15478107]
[1754356489363,0.03,169.38,169.37,30.0590144]
[1754356490488,0.03,169.38,169.37,30.20117597]
[1754356493157,0.68,169.38,169.37,30.0590144]
[1754356493456,0.03,169.38,169.37,30.0590144]
[1754356495864,0.03,169.38,169.37,14.95279883]
[1754356496073,0.68,169.38,169.37,9.0485655]
[1754356497175,0.03,169.38,169.37,30.0590144]
[1754356497380,0.03,169.38,169.37,30.20117597]
[1754356497880,0.68,169.38,169.36,113.5]
[1754356498175,0.68,169.38,169.33,15.10621557]
[1754356498387,0.68,169.38,169.35,9.0485655]
[1754356498972,0.68,169.38,169.36,9.0485655]
[1754356499173,0.68,169.38,169.37,9.0485655]
[1754356499581,0.68,169.38,169.36,9.0485655]
[1754356500189,6.58389283,169.38,169.32,73.48587063]
[1754356500384,0.65,169.37,169.34,9.0485655]
[1754356501171,0.65,169.37,169.33,9.0485655]
[1754356501367,0.65,169.37,169.34,9.0485655]
[1754356501693,0.03,169.38,169.36,9.0485655]
[1754356501873,0.03,169.38,169.37,30.0590144]
[1754356503006,0.68,169.38,169.37,9.0485655]
[1754356503302,0.68,169.38,169.35,9.0485655]
[1754356503507,0.68,169.38,169.34,26.0]
[1754356503706,0.68,169.38,169.34,35.0485655]
[1754356503874,0.65,169.37,169.36,9.0485655]
[1754356504808,0.65,169.37,169.34,26.0]
[1754356504986,0.65,169.37,169.35,9.0485655]
[1754356505400,0.03,169.38,169.36,9.0485655]
[1754356505706,0.03,169.38,169.35,9.0485655]
[1754356506116,0.65,169.37,169.35,9.0485655]
[1754356506311,5.93410558,169.38,169.36,9.0485655]
[1754356506878,0.65,169.37,169.36,9.0485655]
[1754356508625,6.55423333,169.37,169.36,9.0485655]
[1754356509187,0.65,169.37,169.36,9.0485655]
[1754356509587,0.03,169.38,169.36,9.0485655]
[1754356509806,0.03,169.38,169.37,24.15478107]
[1754356510229,0.03,169.38,169.37,66.46736597]
[1754356510804,0.03,169.38,169.37,65.87694264]